[Event "Indian Rapid Championship 2023-24"]
[Site "Nashik"]
[Date "2024.03.06"]
[Round "10.3"]
[White "Ayush Sharma"]
[Black "Sammed Jaykumar, Shete"]
[Result "1-0"]
[ECO "E11"]
[WhiteElo "2311"]
[BlackElo "2404"]
[Annotator "TA"]
[PlyCount "85"]
[EventDate "2024.03.02"]
[EventType "swiss"]
[EventCountry "IND"]
[SourceTitle "playchess.com"]
[Source "ChessBase"]
[SourceQuality "1"]
[TimeControl "900+10"]

{[%evp 9,85,0,0,0,0,19,24,12,34,27,25,14,26,20,27,12,24,0,0,0,18,27,27,8,-2,5,10,-68,-64,-65,0,0,0,6,43,36,41,25,52,54,93,25,34,32,38,30,212,234,218,228,244,227,546,514,525,397,788,786,816,817,1596,1520,3276,5119,29990,29991,29991,29992,29992,29982,29984,29985,29991,29986,29986,29987,29988,29989]} 1. Nf3 {[%emt 0:00:03]} d5 {[%emt 0:00:03]} 2. d4 {[%emt 0:00:06]} Nf6 {[%emt 0:00:07]} 3. c4 {[%emt 0:00:04]} e6 {[%emt 0:00:03]} 4. g3 {[%emt 0:00:07]} Bb4+ {[%emt 0:00:04]} 5. Bd2 {[%emt 0:00:26]} Be7 {[%emt 0:00:02]} 6. Bg2 {[%emt 0:00:13]} Nbd7 {[%emt 0:00:01]} 7. Qc2 {[%emt 0:00:14]} c6 {[%emt 0:00:02]} 8. O-O {[%emt 0:00:04] White has an edge.} Ne4 {[%emt 0:00:01]} 9. Nc3 {[%emt 0:00:15]} Nxd2 {[%emt 0:00:12]} 10. Nxd2 {[%emt 0:00:15]} O-O {[%emt 0:00:45]} 11. Rfd1 {[%emt 0:01:21]} Rb8 {[%emt 0:01:37]} 12. e4 {[%emt 0:00:39]} dxc4 {[%emt 0:00:02]} 13. Nxc4 {[%emt 0:00:02]} b5 {[%emt 0:00:09]} 14. Ne3 {[%emt 0:00:07]} c5 {[%emt 0:00:27]} 15. d5 {[%emt 0:00:16]} Qb6 {[%emt 0:00:03]} 16. a4 {[%emt 0:00:21]} a6 {[%emt 0:00:12]} 17. a5 {[%emt 0:01:16]} Qa7 {[%emt 0:00:18]} 18. Kh1 {[%emt 0:01:32]} (18. b3 $11) 18... c4 $15 {[%emt 0:01:14]} 19. b3 {[%emt 0:01:49]} Ne5 {[%emt 0:04:39]} (19... cxb3 $15 20. Qxb3 Nc5) 20. bxc4 $11 {[%emt 0:00:31]} bxc4 {[%emt 0:01:59]} 21. Na4 $36 {[%emt 0:01:57][%mdl 2048] White is pushing.} Bd7 {[%emt 0:00:00]} 22. Nb6 {[%emt 0:00:33]} (22. Nxc4 $2 Nxc4 23. Qxc4 Rb4 $19) 22... Bb5 {[%emt 0:00:00]} 23. Bf1 {[%emt 0:01:10][%cal Re3c4]} (23. Nbxc4 $2 Nxc4 24. Nxc4 Rfc8 25. dxe6 (25. Bf1 $2 Bxc4 26. Bxc4 Rb4 $19) 25... Bxc4 $19) (23. d6 {looks sharper.} Bf6 24. Rab1 Bd8 25. Nbxc4 Rc8 26. Bf1) 23... exd5 {[%emt 0:01:25]} 24. Nexd5 {[%emt 0:00:21]} Bc5 {[%emt 0:00:26]} 25. h3 {[%emt 0:00:59] White is more active.} (25. Bxc4 Bxc4 (25... Nxc4 26. Nxc4 Rfc8 27. Ncb6 $16) 26. Nxc4 Nxc4 $16) (25. f3 $16) 25... Bxb6 26. axb6 {[%emt 0:00:02]} (26. Nxb6 Nd3 $15) 26... Qb7 {[%emt 0:02:20]} 27. Rac1 {[%emt 0:01:32]} f5 $2 {[%emt 0:00:52] [#] A mistake that costs the game.} 28. f4 $1 $18 {[%emt 0:00:36]} (28. exf5 Nd3 29. Bg2 (29. Bxd3 cxd3 30. Rxd3 Bxd3 $15) 29... Kh8 $11) 28... Nd3 {[%emt 0:00:12]} 29. Bxd3 {[%emt 0:00:01]} cxd3 {[%emt 0:00:01] [#]} 30. Qa2 {[%emt 0:00:01]} Kh8 $2 {[%emt 0:01:19] Black is weak on the dark squares} (30... fxe4 $2 31. Rc7 $18) (30... Rf7 {is more resistant.}) 31. Rc7 {[%emt 0:00:07]} Qa8 {[%emt 0:00:01]} 32. Rdc1 {[%emt 0:00:58][%cal Oc7g7] Threatens to win with Rxg7!} Rbe8 $2 {[%emt 0:01:30]} (32... fxe4 33. Rxg7 Rf5 34. Qb2 Qxd5 35. Re7+ (35. Rb7+ Re5 $18) (35. Rb7+ Re5 $18)) (32... Rg8 33. Kg2 (33. exf5 $2 Rxb6 34. Kh2 Rd6 $17) 33... fxe4) 33. Qb2 {[%emt 0:00:46]} Rg8 {[%emt 0:00:01]} 34. b7 {[%emt 0:00:58] Intending Rxg7 and mate.} Qb8 {[%emt 0:00:01]} 35. Ne7 {[%emt 0:00:26]} (35. exf5 Re2 36. Qd4 d2 $11) 35... d2 {[%emt 0:00:36]} 36. Qxd2 {[%emt 0:00:01]} (36. Nxg8 d1=Q+ (36... dxc1=R+ 37. Qxc1 Rxg8 38. Qc3 $11) 37. Rxd1 Qxc7 $11) 36... fxe4 {[%emt 0:00:09]} 37. Nxg8 {[%emt 0:00:20] White mates.} e3 {[%emt 0:00:02]} 38. Qd4 {[%emt 0:00:20][%csl Gc7][%cal Rd4g7]} Rxg8 {[%emt 0:00:03]} 39. Qxe3 {[%emt 0:00:02]} Qd8 {[%emt 0:00:04]} 40. Qe5 {[%emt 0:00:26]} Qd3 {[%emt 0:00:20]} 41. R7c3 {[%emt 0:00:29]} ({And not} 41. b8=Q Qf3+ 42. Kh2 (42. Kg1 Qxg3+ 43. Kh1 Qxh3+ 44. Kg1 Qg3+ 45. Kh1 Qf3+ 46. Kh2 Qf2+ 47. Kh1 Qf3+ 48. Kh2 Qf2+ 49. Kh1 Qf3+ $11) 42... Qf2+ 43. Kh1 Qf3+ 44. Kh2 (44. Kg1 Qxg3+ 45. Kh1 Qf3+ 46. Kh2 Qf2+ 47. Kh1 Qf3+ 48. Kg1 Qg3+ 49. Kh1 Qxh3+ 50. Kg1 Qg3+ 51. Kh1 Qf3+ 52. Kh2 Qf2+ 53. Kh3 Bf1+ 54. Rxf1 Qxf1+ 55. Kh2 Qf2+ 56. Kh3 Qf3+ 57. Kh2 Qf2+ 58. Kh3 Qf3+ 59. Kh2 Qf2+ $11) 44... Qf2+ 45. Kh1 Qf3+ $11) 41... Bc6+ {[%emt 0:00:12]} 42. Kg1 {[%emt 0:00:10]} Qd7 {[%emt 0:00:25]} 43. b8=Q {[%emt 0:00:06] Weighted Error Value: White=0.09 (flawless) /Black=0.39.  Loses game:     	---       	Black=1      Mistake:       	White=2     	Black=3      Inaccurate:     	---       	Black=3      OK:         	White=11    	Black=12     Best:        	White=3     	Black=1      Strong:       	White=1     	---} 1-0

[Event "Indian Rapid Championship 2023-24"]
[Site "Nashik"]
[Date "2024.03.06"]
[Round "10.4"]
[White "Raja Rithvik R"]
[Black "Vaz, Ethan"]
[Result "1-0"]
[ECO "E06"]
[WhiteElo "2532"]
[BlackElo "2409"]
[Annotator "TA"]
[PlyCount "131"]
[EventDate "2024.03.02"]
[EventType "swiss"]
[EventCountry "IND"]
[SourceTitle "playchess.com"]
[Source "ChessBase"]
[SourceQuality "1"]
[TimeControl "900+10"]

{[%evp 14,131,30,0,10,10,60,36,50,25,48,52,28,29,29,13,28,39,29,-16,-18,0,-10,0,0,0,-7,0,-10,-6,-21,-17,-12,-6,-16,-46,-7,-16,0,0,0,0,0,0,107,86,309,308,323,333,308,313,354,354,361,358,393,343,406,381,399,391,383,397,457,445,500,483,493,475,513,510,838,829,1099,1095,1063,1056,978,929,12844,6018,29972,29960,29958,29960,29963,29963,29969,29970,29970,29972,29973,29973,29977,29976,29981,29982,29983,29983,29983,29984,29984,29985,29996,29985,29985,29986,29987,29988,29988,29989,29991,29992,29992,29990,29990,29991,29991,29990]} 1. Nf3 {[%emt 0:00:02]} d5 {[%emt 0:00:06]} 2. d4 {[%emt 0:00:02]} Nf6 {[%emt 0:00:05]} 3. c4 {[%emt 0:00:02]} e6 {[%emt 0:00:02]} 4. g3 {[%emt 0:00:05]} Be7 {[%emt 0:00:05]} 5. Bg2 {[%emt 0:00:02]} O-O {[%emt 0:00:10]} 6. Qc2 {[%emt 0:00:20]} dxc4 {[%emt 0:01:20]} 7. Qxc4 {[%emt 0:00:03]} a6 {[%emt 0:00:32]} 8. Qc2 {[%emt 0:01:02]} b5 {[%emt 0:01:38]} 9. Ne5 {[%emt 0:00:15]} Nd5 {[%emt 0:01:45]} (9... Ra7 $11) 10. O-O {[%emt 0:01:05]} Bb7 {[%emt 0:00:02] Weiß steht etwas besser.} 11. a3 {[%emt 0:00:18] Verhindert Nb4.} Qc8 {[%emt 0:03:10]} 12. e4 {[%emt 0:01:20]} Nb6 {[%emt 0:00:55]} 13. Be3 {[%emt 0:00:20]} N8d7 {[%emt 0:00:45]} 14. Nc6 {[%emt 0:02:46]} Bxc6 {[%emt 0:00:11]} 15. Qxc6 {[%emt 0:00:01]} Nc4 {[%emt 0:00:22][%cal Od7b8]} 16. Nd2 {[%emt 0:00:06]} Nb8 {[%emt 0:01:26][%cal Bd7b8,Bb8c6,Bc6e5,Be5d3][%mdl 32]} 17. Qxa8 {[%emt 0:00:02]} Nb6 {[%emt 0:00:02]} 18. Qa7 {[%emt 0:00:02]} Nc6 {[%emt 0:00:06]} 19. Qxb6 {[%emt 0:00:03]} cxb6 {[%emt 0:00:01]} 20. Rac1 {[%emt 0:00:10]} Qd7 {[%emt 0:00:51]} 21. d5 {[%emt 0:00:13]} Ne5 {[%emt 0:01:26]} 22. Bxb6 {[%emt 0:00:14]} Rc8 {[%emt 0:01:06] Wehrt Rc7 ab} 23. b4 {[%emt 0:02:12]} Nd3 {[%emt 0:01:18]} 24. Rcd1 {[%emt 0:01:25]} Nb2 {[%emt 0:00:12][%mdl 1024] Schwarz hat Kompensation.} 25. Rc1 {[%emt 0:00:15]} Nd3 {[%emt 0:00:18]} 26. Rb1 {[%emt 0:00:29]} Rc3 {[%emt 0:01:08]} 27. Nb3 {[%emt 0:00:07]} Ne5 {[%emt 0:00:10]} 28. Rfd1 {[%emt 0:01:52] Und jetzt Bd4 wäre schön.} Bd6 {[%emt 0:00:08]} (28... exd5 $11 29. exd5 Rd3) 29. Bd4 $16 {[%emt 0:01:14]} Rd3 $2 {[%emt 0:00:20] Verliert die Partie.} (29... Rc2 $16) 30. Bxe5 $18 {[%emt 0:00:58]} Rxd1+ {[%emt 0:00:01]} 31. Rxd1 {[%emt 0:00:01]} Bxe5 {[%emt 0:00:01] [#]} 32. d6 {[%emt 0:00:01][%mdl 512]} g6 {[%emt 0:00:25]} (32... Bxd6 $2 33. e5 $18) (32... g5 33. Nc5) 33. Nc5 {[%emt 0:00:05]} Qd8 {[%emt 0:00:16]} 34. d7 {[%emt 0:00:05][%cal Oc5b7] Zielt auf Nb7! ab.} ({Bloß nicht} 34. Nxa6 Bf6 (34... Bxd6 $2 {verliert.} 35. e5 $18) 35. Nc5 (35. d7 Kg7 $18) 35... h6 $18) 34... Bc7 {[%emt 0:00:08]} 35. Nb7 {[%emt 0:02:28]} Qf6 {[%emt 0:00:08]} 36. d8=Q+ {[%emt 0:00:47]} Bxd8 {[%emt 0:00:01]} 37. Rxd8+ {[%emt 0:00:09]} Kg7 {[%emt 0:00:01]} 38. Rd3 {[%emt 0:00:04]} Qa1+ {[%emt 0:00:11]} 39. Bf1 {[%emt 0:00:01]} Qe5 {[%emt 0:00:19]} 40. Nc5 {[%emt 0:00:13]} a5 {[%emt 0:00:05]} 41. Rd7 {[%emt 0:00:13]} axb4 {[%emt 0:00:09]} 42. axb4 {[%emt 0:00:02]} Qc3 {[%emt 0:00:32]} (42... Kf8 $142 43. Bxb5 Qc3) 43. Nxe6+ {[%emt 0:00:07]} Kh6 {[%emt 0:00:06]} 44. Rxf7 {[%emt 0:00:39] [#] Weiss will mit Nf8 Matt setzen.} Qb3 {[%emt 0:00:02]} 45. Nd8 {[%emt 0:00:18] Droht stark Rd7.} Qxb4 {[%emt 0:00:14]} 46. Rb7 {[%emt 0:00:01] e5 wäre nun fies.} g5 {[%emt 0:00:18]} 47. Rxb5 {[%emt 0:00:07]} Qxe4 {[%emt 0:00:03]} 48. Nf7+ {[%emt 0:00:02] Weiß setzt Matt.} Kg7 {[%emt 0:00:04]} 49. Nxg5 {[%emt 0:00:04]} Qe7 {[%emt 0:00:16]} 50. h4 {[%emt 0:00:08]} h6 {[%emt 0:00:02]} 51. Nh3 {[%emt 0:00:02]} Qe4 {[%emt 0:00:14]} 52. Nf4 {[%emt 0:00:03]} Qe1 {[%emt 0:00:20]} 53. Rb7+ {[%emt 0:00:07]} Kf6 {[%emt 0:00:03]} 54. Rh7 {[%emt 0:00:20]} Qd2 {[%emt 0:00:17]} 55. Rxh6+ {[%emt 0:00:05]} Kg7 {[%emt 0:00:01]} 56. Rg6+ {[%emt 0:00:04]} Kh7 {[%emt 0:00:02]} 57. Re6 {[%emt 0:00:12]} Kh8 {[%emt 0:00:16]} 58. Bd3 {[%emt 0:00:08]} Kg7 {[%emt 0:00:11]} 59. Be4 {[%emt 0:00:04]} Kf7 {[%emt 0:00:06]} 60. Kg2 {[%emt 0:00:08]} Qb2 {[%emt 0:00:15]} 61. h5 {[%emt 0:00:04][%cal Bh4h5,Bh5h6,Bh6h7][%mdl 32]} Kf8 {[%emt 0:00:15]} 62. h6 {[%emt 0:00:09]} Qc3 {[%emt 0:00:04]} 63. h7 {[%emt 0:00:08]} Kf7 {[%emt 0:00:01]} 64. Rh6 {[%emt 0:00:21]} Qh8 {[%emt 0:00:09]} 65. Ng6 {[%emt 0:00:11]} Qd4 {[%emt 0:00:04]} 66. Bf3 {[%emt 0:00:10] Gewichteter Fehlerwert: Weiß=0.09 (makellos) /Schwarz=0.40.  Verlustzug:     	---       	Schwarz=1     Fehler:       	---       	Schwarz=3     Ungenau:       	Weiß=2     	Schwarz=2     OK:         	Weiß=17    	Schwarz=14    Bester:       	Weiß=2     	Schwarz=4} 1-0

[Event "Indian Rapid Championship 2023-24"]
[Site "Nashik"]
[Date "2024.03.06"]
[Round "10.5"]
[White "Sriram, Jha"]
[Black "Das, Arghyadip"]
[Result "1/2-1/2"]
[ECO "D13"]
[WhiteElo "2312"]
[BlackElo "2405"]
[Annotator "TA"]
[PlyCount "24"]
[EventDate "2024.03.02"]
[EventType "swiss"]
[EventCountry "IND"]
[SourceTitle "playchess.com"]
[Source "ChessBase"]
[SourceQuality "1"]
[TimeControl "900+10"]

{[%evp 19,24,0,5,6,9,4,6]} 1. d4 {[%emt 0:00:05]} d5 {[%emt 0:00:03]} 2. c4 {[%emt 0:00:03]} c6 {[%emt 0:00:04]} 3. cxd5 {[%emt 0:00:03]} cxd5 {[%emt 0:00:02]} 4. Nc3 {[%emt 0:00:04]} Nf6 {[%emt 0:00:04]} 5. Nf3 {[%emt 0:00:03]} Nc6 {[%emt 0:00:07]} 6. Bf4 {[%emt 0:00:02]} a6 {[%emt 0:00:06]} 7. e3 {[%emt 0:00:03]} Bf5 {[%emt 0:00:07]} 8. Bd3 {[%emt 0:00:02]} Bxd3 {[%emt 0:00:05]} 9. Qxd3 {[%emt 0:00:02]} e6 {[%emt 0:00:02]} 10. O-O {[%emt 0:00:03]} Bd6 {[%emt 0:00:04] The position is equal.} 11. Bxd6 {[%emt 0:00:01]} Qxd6 {[%emt 0:00:03]} 12. a3 {[%emt 0:00:08]} O-O {[%emt 0:00:04] An uneventful encounter.} 1/2-1/2

[Event "Indian Rapid Championship 2023-24"]
[Site "Nashik"]
[Date "2024.03.06"]
[Round "10.6"]
[White "Utsab Chatterjee"]
[Black "Aradhya, Garg"]
[Result "1/2-1/2"]
[ECO "C88"]
[WhiteElo "2301"]
[BlackElo "2385"]
[Annotator "TA"]
[PlyCount "106"]
[EventDate "2024.03.02"]
[EventType "swiss"]
[EventCountry "IND"]
[SourceTitle "playchess.com"]
[Source "ChessBase"]
[SourceQuality "1"]
[TimeControl "900+10"]

{[%evp 30,106,0,0,0,-10,-8,-29,0,-19,0,0,0,0,0,0,0,0,0,0,0,0,0,0,0,-8,0,0,0,0,0,0,0,0,12,0,7,0,0,-8,0,-11,0,0,0,0,16,0,0,0,0,0,0,0,0,0,17,0,125,-94,-106,-173,-70,-73,-69,-70,0,0,0,0,0,0,0,0,96,0,0,0,0]} 1. e4 {[%emt 0:00:02]} e5 {[%emt 0:00:01]} 2. Nf3 {[%emt 0:00:02]} Nc6 {[%emt 0:00:01]} 3. Bb5 {[%emt 0:00:02]} a6 {[%emt 0:00:02]} 4. Ba4 {[%emt 0:00:01]} Nf6 {[%emt 0:00:01]} 5. O-O {[%emt 0:00:03]} Be7 {[%emt 0:00:01]} 6. Re1 {[%emt 0:00:02]} b5 {[%emt 0:00:02]} 7. Bb3 {[%emt 0:00:02]} O-O {[%emt 0:00:02]} 8. a4 {[%emt 0:00:01]} b4 {[%emt 0:00:16]} 9. d4 {[%emt 0:00:02]} d6 {[%emt 0:00:01]} 10. dxe5 {[%emt 0:00:05]} Nxe5 {[%emt 0:00:03]} 11. Nxe5 {[%emt 0:00:35] C88: Closed Ruy Lopez: Anti-Marshall Systems.} dxe5 {[%emt 0:00:01]} 12. Qe2 {[%emt 0:00:18]} a5 {[%emt 0:00:09]} 13. Nd2 {[%emt 0:00:19]} Bc5 {[%emt 0:00:06]} 14. h3 {[%emt 0:00:14]} Qe7 {[%emt 0:00:40]} 15. Bc4 {[%emt 0:00:13]} Bb7 {[%emt 0:00:27]} 16. Bd3 {[%emt 0:00:02]} Nd7 {[%emt 0:00:31]} 17. Nb3 {[%emt 0:01:30]} Bb6 {[%emt 0:00:01]} 18. Qg4 $146 {[%emt 0:00:13]} ({Predecessor:} 18. Be3 Nc5 19. Nxc5 Bxc5 20. Bc4 Bd6 21. Bd2 Kh8 22. Bd3 Bc5 23. c3 Rad8 24. cxb4 Bxb4 25. Bxb4 Qxb4 {½-½ Quparadze,G (2471)-Annaberdiev,M (2489) Kahramanmaras op 9th 2018 (9)}) 18... Nf6 {[%emt 0:02:14]} 19. Qh4 {[%emt 0:00:56]} Bc6 {[%emt 0:00:41]} 20. Be3 {[%emt 0:01:55]} Rfd8 {[%emt 0:01:24]} 21. Nd2 {[%emt 0:00:44]} Bxe3 {[%emt 0:01:13]} 22. Rxe3 {[%emt 0:00:03]} Nd5 {[%emt 0:00:02]} 23. Qxe7 {[%emt 0:00:09]} Nxe7 {[%emt 0:00:01]} 24. Nc4 {[%emt 0:00:38]} f6 {[%emt 0:00:06]} 25. b3 {[%emt 0:00:26]} Bd7 {[%emt 0:01:30]} 26. Rc1 {[%emt 0:00:37]} Nc6 {[%emt 0:01:17]} 27. Nd2 {[%emt 0:01:46]} Be6 {[%emt 0:02:48]} 28. c3 {[%emt 0:01:34]} bxc3 {[%emt 0:00:28]} 29. Rxc3 {[%emt 0:00:02]} Nb4 {[%emt 0:00:01]} 30. Bc4 {[%emt 0:00:10]} Kf7 {[%emt 0:01:22]} 31. Re2 {[%emt 0:00:30]} Bxc4 {[%emt 0:00:03]} 32. Rxc4 {[%emt 0:00:02]} c6 {[%emt 0:00:04]} 33. Rc5 {[%emt 0:00:03]} Rd3 {[%emt 0:00:14]} 34. g3 {[%emt 0:03:01]} Ke6 {[%emt 0:00:56]} 35. Kg2 {[%emt 0:00:04]} Rad8 {[%emt 0:02:52]} 36. Nc4 {[%emt 0:01:15]} Rc3 {[%emt 0:00:36]} 37. Re3 {[%emt 0:00:49]} Rxe3 {[%emt 0:00:16]} 38. Nxe3 {[%emt 0:00:02]} Rd2 {[%emt 0:00:17]} 39. Rxa5 {[%emt 0:00:38]} Nd3 {[%emt 0:00:01]} 40. Ra7 {[%emt 0:00:55]} g6 {[%emt 0:00:03]} 41. a5 {[%emt 0:01:00]} (41. Rxh7 Rxf2+ 42. Kg1 Re2) 41... Rxf2+ {[%emt 0:00:02]} 42. Kg1 {[%emt 0:00:01]} Rf3 {[%emt 0:00:20]} 43. Nf1 {[%emt 0:00:07]} (43. Nc4 $5 Rxg3+ (43... Nc5 44. Rc7 $16) 44. Kh2 $11) 43... Nc5 {[%emt 0:00:04] [#]} (43... Rf2 $1 $11 {keeps the balance.}) 44. b4 $2 {[%emt 0:00:05]} (44. a6 $1 $16 {[%cal Oa7e7] is necessary to keep the advantage. Threatens to win with Re7+!} Kd6 (44... Nxb3 $2 45. Ra8 $18) (44... Nxe4 $2 45. Rb7 $18) 45. Nd2 Rxg3+ 46. Kh2) 44... Nxe4 $17 {[%emt 0:00:03]} 45. Rxh7 {[%emt 0:00:21]} (45. Rc7 $17) 45... Rb3 {[%emt 0:00:08]} (45... Nxg3 $19 46. Nxg3 Rxg3+ 47. Kf1 Rb3) 46. Rc7 $15 {[%emt 0:00:10]} Kd6 {[%emt 0:00:23]} ({Much weaker is} 46... Nxg3 47. Rxc6+ Kf5 48. Nxg3+ Rxg3+ 49. Kh2 $11) 47. Rb7 {[%emt 0:00:03]} Nxg3 {[%emt 0:00:01]} (47... Rb1 $1 $15 48. Kg2 Rb2+ 49. Kg1 Ng5) 48. Nd2 $1 $11 {[%emt 0:00:05]} Rc3 $1 {[%emt 0:00:21]} 49. a6 {[%emt 0:00:14]} Rc1+ $1 {[%emt 0:00:01]} 50. Kf2 {[%emt 0:00:09]} (50. Kg2 $5 Rc2 $8 51. Kxg3 Rxd2 52. Rg7 $14) 50... Rc2 $1 {[%emt 0:00:01]} 51. Ke3 {[%emt 0:00:28]} (51. Ke1 $5 Rc1+ $8 52. Kf2 $11) 51... Rc3+ {[%emt 0:00:02]} 52. Kf2 {[%emt 0:00:04]} Rc2 $1 {[%emt 0:00:00]} ({But not} 52... e4 $2 53. a7 e3+ 54. Kg2 (54. Kxg3 {gets mated.} exd2+ 55. Kf4 d1=Q) 54... exd2 55. a8=Q $18 (55. a8=B d1=Q)) 53. Ke3 {[%emt 0:00:32]} (53. Ke1 $5 Rc1+ $8 54. Kf2 Rc2 $11) 53... Rc3+ {[%emt 0:00:02]} 1/2-1/2

[Event "Indian Rapid Championship 2023-24"]
[Site "Nashik"]
[Date "2024.03.06"]
[Round "10.7"]
[White "Mitrabha, Guha"]
[Black "Kushagra Mohan"]
[Result "1-0"]
[ECO "A28"]
[WhiteElo "2526"]
[BlackElo "2351"]
[Annotator "TA"]
[PlyCount "67"]
[EventDate "2024.03.02"]
[EventType "swiss"]
[EventCountry "IND"]
[SourceTitle "playchess.com"]
[Source "ChessBase"]
[SourceQuality "1"]
[TimeControl "900+10"]

{[%evp 9,67,4,10,0,13,4,11,0,8,8,13,9,9,8,11,11,10,8,12,7,22,8,5,0,8,6,3,0,5,0,102,97,111,130,262,262,490,502,459,525,564,530,586,522,598,604,586,552,603,586,572,525,1026,1003,2116,2006,29983,29984,29987,29986]} 1. c4 {[%emt 0:04:31]} e5 {[%emt 0:00:08]} 2. Nc3 {[%emt 0:00:03]} Nf6 {[%emt 0:00:02]} 3. Nf3 {[%emt 0:00:01]} Nc6 {[%emt 0:00:01]} 4. e4 {[%emt 0:00:01]} Bb4 {[%emt 0:00:02]} 5. d3 {[%emt 0:00:01]} d6 {[%emt 0:00:00]} 6. a3 {[%emt 0:00:00]} Bc5 {[%emt 0:00:01]} 7. b4 {[%emt 0:00:01]} Bb6 {[%emt 0:00:30]} 8. Be3 {[%emt 0:00:02] The position is equal.} Bg4 {[%emt 0:00:13]} 9. Be2 {[%emt 0:00:02]} Bxf3 {[%emt 0:00:34]} 10. Bxf3 {[%emt 0:00:02]} Nd4 {[%emt 0:00:01]} 11. O-O {[%emt 0:00:14]} O-O {[%emt 0:00:08]} 12. Na4 {[%emt 0:00:01]} Nxf3+ {[%emt 0:00:02]} 13. Qxf3 {[%emt 0:00:02]} Bxe3 {[%emt 0:00:01]} 14. Qxe3 {[%emt 0:00:02]} c6 {[%emt 0:00:21]} 15. Nc3 {[%emt 0:00:01]} Re8 {[%emt 0:00:37]} 16. Rad1 {[%emt 0:00:02]} d5 {[%emt 0:01:07]} 17. exd5 {[%emt 0:00:02]} cxd5 {[%emt 0:00:01] [#] ...d4 would now be deadly.} 18. Qf3 {[%emt 0:00:01]} Rc8 {[%emt 0:01:26]} 19. Rfe1 {[%emt 0:00:33]} dxc4 {[%emt 0:00:49]} (19... g6 $11 {keeps the balance.}) 20. dxc4 $16 {[%emt 0:00:10]} (20. Qxb7 $2 cxd3 21. Ne4 Nxe4 22. Qxe4 d2 $19) 20... Qe7 {[%emt 0:00:01]} 21. Nb5 {[%emt 0:00:52] And now Nd6 would win. White has more active pieces.} Rxc4 {[%emt 0:01:55] Loses the game.} (21... Rc6 $16 {is a better defense.} 22. Nd4 (22. Nxa7 Rxc4 23. h3 g6 $16) 22... Rc7 (22... Rxc4 $2 23. Nf5 $18)) 22. Nd6 $1 $18 {[%emt 0:00:14]} (22. Nxa7 h6 $11) 22... Rf4 {[%emt 0:00:01]} (22... e4 23. Qe3 (23. Nxc4 exf3 24. Rxe7 Rxe7 $15) (23. Nxe8 Qxe8 24. Qf5 h6 $18) 23... Rcc8 24. Nxe8 (24. Nxc8 Rxc8 25. Qxa7 h5 $18) 24... Qxe8 25. Qxa7 Qb5) 23. Qxf4 {[%emt 0:02:11]} ({Not} 23. Qxb7 Qxb7 24. Nxb7 h5 $14) 23... exf4 {[%emt 0:00:06][%cal Be5f4,Bf4f3][%mdl 32]} 24. Nxe8 $1 {[%emt 0:00:02]} Ne4 {[%emt 0:00:59] [#]} 25. Nd6 {[%emt 0:00:35][%mdl 512] Prevents f5.} f5 {[%emt 0:00:11][%cal Of4f3,Bf7f5,Bf5f4][%mdl 32]} (25... Qxd6 26. Rxd6) 26. f3 {[%emt 0:00:24][%cal Bf2f3,Bf3e4][%mdl 32]} Qg5 {[%emt 0:00:02]} 27. fxe4 {[%emt 0:00:36]} f3 {[%emt 0:00:04][%csl Gf3][%cal Rg5g2]} 28. g3 {[%emt 0:00:01][%cal Bg2g3,Bg3f4][%mdl 32]} (28. Nxb7 $2 Qxg2#) 28... f4 {[%emt 0:00:55]} 29. Kf2 {[%emt 0:00:03]} (29. Nxb7 fxg3 30. Nd6 (30. Rd8+ $2 Qxd8 31. Nxd8 f2+ 32. Kf1 fxe1=Q+ 33. Kxe1 gxh2 $19) 30... f2+ 31. Kg2 fxe1=N+ (31... fxe1=R $2 32. Rxe1 Qd2+ 33. Kxg3 $19) 32. Rxe1 Qd2+ 33. Kxg3 Qxe1+ $19) 29... Qh5 {[%emt 0:03:38]} 30. Rh1 {[%emt 0:03:32]} g5 {[%emt 0:00:00][%cal Bg7g5,Bg5g4][%mdl 32]} 31. Nf5 {[%emt 0:00:17]} g4 {[%emt 0:00:00]} 32. gxf4 {[%emt 0:00:20]} Qe8 {[%emt 0:00:00] Wards off Rd8} 33. Rd4 {[%emt 0:00:55]} Qa4 {[%emt 0:00:00]} 34. Rhd1 {[%emt 0:00:20] Weighted Error Value: White=0.06 (flawless) /Black=0.59.  Mistake:       	---       	Black=3      Inaccurate:     	---       	Black=2      OK:         	White=12    	Black=5      Best:        	White=2     	---        Strong:       	White=2     	---} 1-0